bitfinex/quotes_SOLUSD_20250217
["timestamp","ask_amount","ask_price","bid_price","bid_amount"]
[1739820943427,87.722,177.87,177.86,0.03]
[1739820944718,5.622,177.87,177.86,0.03]
[1739820945240,19.03354853,177.88,177.86,0.03]
[1739820946439,5.6845,177.89,177.86,0.03]
[1739820946742,5.6845,177.89,177.86,32.83230862]
[1739820947729,0.063,177.89,177.88,32.80230862]
[1739820949640,0.063,177.89,177.86,32.83230862]
[1739820949832,0.063,177.89,177.86,0.03]
[1739820950520,0.063,177.89,177.87,32.80230862]
[1739820951432,0.063,177.89,177.86,32.83230862]
[1739820952143,0.063,177.89,177.86,0.03]
[1739820952643,0.063,177.89,177.88,32.80230862]
[1739820953549,0.063,177.89,177.88,38.42400862]
[1739820955023,0.063,177.89,177.88,32.80230862]
[1739820956550,0.063,177.89,177.88,38.42400862]
[1739820958945,0.063,177.89,177.88,32.80230862]
[1739820959734,0.063,177.89,177.88,38.42400862]
[1739820960353,0.063,177.89,177.88,32.80230862]
[1739820961134,0.063,177.89,177.88,38.42400862]
[1739820961336,0.063,177.89,177.88,32.80230862]
[1739820962037,0.063,177.89,177.87,32.80230862]
[1739820962238,0.063,177.89,177.86,32.83230862]
[1739820962756,0.063,177.89,177.86,20.54317096]
[1739820963952,0.063,177.89,177.86,0.03]
[1739820964144,0.063,177.89,177.87,20.51317096]
[1739820964345,0.063,177.89,177.88,20.51317096]
[1739820967764,0.063,177.89,177.87,20.51317096]
[1739820969345,0.063,177.89,177.88,20.51317096]
[1739820971468,0.063,177.89,177.87,20.51317096]
[1739820972865,0.063,177.89,177.88,20.51317096]
[1739820974068,0.063,177.89,177.88,23.00370397]
[1739820974243,0.063,177.93,177.91,20.0]
[1739820974450,9.94006739,177.98,177.92,41.02634192]
[1739820974652,9.94006739,177.98,177.97,26.13207096]
[1739820974973,8.79209017,178.01,177.97,40.17937096]
[1739820975160,8.79209017,178.02,178.0,20.51317096]
[1739820975346,8.79209017,178.02,178.01,20.51317096]
[1739820976543,8.79209017,178.02,178.01,32.74829644]
[1739820977275,8.79209017,178.02,177.98,32.74829644]
[1739820977481,8.79209017,178.02,177.97,32.74829644]
[1739820977848,8.79209017,178.02,177.98,32.74829644]
[1739820978084,8.79209017,178.02,177.97,32.74829644]
[1739820978376,14.40939017,178.02,177.97,32.74829644]
[1739820978562,5.6173,178.02,177.97,32.74829644]
[1739820978959,5.6173,178.02,177.91,3.43355033]
[1739820978960,120.46559644,178.02,177.95,32.74829644]
[1739820979157,120.46559644,178.02,177.91,1.591]
[1739820979158,128.26014497,178.01,177.94,32.74829644]
[1739820979370,32.74829644,178.0,177.94,32.74829644]
[1739820979582,32.74829644,177.99,177.93,32.74829644]
[1739820979972,128.26014497,177.98,177.92,32.74829644]
[1739820980182,1.5059,177.96,177.9,32.74829644]
[1739820980654,1.5059,177.96,177.92,32.74829644]
[1739820981055,6.6252,177.96,177.92,32.74829644]
[1739820981571,82.1,177.97,177.89,5.6213]
[1739820981572,82.1,177.97,177.95,32.74829644]
[1739820982584,82.1,177.97,177.92,32.74829644]
[1739820982882,32.74829644,177.96,177.9,52.74829644]
[1739820983049,5.6195,177.95,177.9,52.74829644]
[1739820983252,82.1,177.94,177.9,52.74829644]
[1739820983477,82.1,177.94,177.9,32.74829644]
[1739820983665,82.1,177.93,177.88,32.74829644]
[1739820983864,82.1,177.93,177.87,32.74829644]
[1739820983865,82.1,177.92,177.87,32.74829644]
[1739820984695,114.84829644,177.92,177.86,32.77829644]
[1739820984979,82.1,177.91,177.87,32.74829644]
[1739820985183,82.1,177.91,177.88,32.74829644]
[1739820986975,82.1,177.91,177.9,32.74829644]
[1739820987779,82.1,177.91,177.88,32.74829644]
[1739820988077,82.1,177.91,177.87,32.74829644]
[1739820988380,82.1,177.91,177.89,32.74829644]
[1739820988878,87.7209,177.91,177.88,32.74829644]
[1739820989078,87.7209,177.91,177.88,0.03]
[1739820989260,82.1,177.91,177.88,0.03]
[1739820989462,82.1,177.91,177.88,32.77829644]
[1739820990469,82.1,177.9,177.88,0.03]
[1739820992682,82.1,177.9,177.88,32.77829644]
[1739820993275,82.1,177.9,177.88,0.03]
[1739820993586,82.0755705,177.9,177.88,0.03]
[1739820994291,82.0755705,177.9,177.88,32.77829644]
[1739820994592,82.0755705,177.9,177.89,32.74829644]
[1739820995985,82.0755705,177.9,177.88,32.77829644]
[1739820996369,82.0755705,177.9,177.89,32.74829644]
[1739820996576,82.0755705,177.9,177.89,20.50403656]
[1739820997397,82.0755705,177.9,177.88,20.53403656]
[1739820997696,82.0755705,177.9,177.88,0.03]
[1739820998674,82.0755705,177.9,177.88,20.53403656]
[1739820998894,82.0755705,177.9,177.89,20.50403656]
[1739821001299,82.0755705,177.9,177.88,20.53403656]
[1739821001595,82.0755705,177.9,177.88,0.03]
[1739821001807,87.6967705,177.9,177.88,0.03]
[1739821002111,102.57960706,177.89,177.88,0.03]
[1739821002310,110.70100706,177.89,177.88,0.03]
[1739821002899,95.8183705,177.89,177.88,0.03]
[1739821005497,47.65868509,177.89,177.88,0.03]
[1739821006079,13.7428,177.89,177.88,0.03]
[1739821006475,47.65868509,177.89,177.88,0.03]
[1739821009400,47.65868509,177.89,177.86,0.03]
[1739821009710,33.91588509,177.87,177.86,0.03]
[1739821009887,13.41184853,177.87,177.86,0.03]
[1739821010374,19.03384853,177.87,177.86,0.03]
[1739821013903,39.53788509,177.87,177.86,0.03]
[1739821014906,19.03384853,177.87,177.86,0.03]
[1739821018000,39.53788509,177.87,177.86,0.03]
[1739821019881,5.622,177.87,177.86,0.03]
[1739821020994,19.03354853,177.88,177.86,0.03]
[1739821021390,5.6217,177.88,177.86,20.53403656]
[1739821021590,5.6841,177.9,177.87,20.50403656]
[1739821021810,5.6841,177.9,177.88,20.50403656]
[1739821022111,5.6841,177.9,177.86,20.53403656]
[1739821022312,5.6841,177.9,177.86,0.03]
[1739821022313,13.41184853,177.89,177.86,0.03]
[1739821022483,20.50403656,177.88,177.86,0.03]
[1739821022900,13.41184853,177.89,177.86,0.03]
[1739821023110,5.6217,177.88,177.86,0.03]
[1739821024421,5.6843,177.9,177.87,20.50403656]
[1739821024587,5.6843,177.9,177.86,0.03]
[1739821024588,82.1,177.89,177.88,20.50403656]
[1739821025892,82.1,177.89,177.86,0.03]
[1739821026406,0.063,177.88,177.86,0.03]
[1739821027203,0.063,177.88,177.86,13.16038562]
[1739821027704,0.063,177.88,177.86,0.03]
[1739821027905,82.1,177.87,177.86,0.03]
[1739821028293,82.1,177.87,177.86,13.16038562]
[1739821028492,86.7,177.87,177.86,13.16038562]
[1739821028801,82.1,177.87,177.86,13.16038562]
[1739821029004,86.7,177.87,177.86,13.16038562]
[1739821029207,86.7,177.87,177.86,18.78268562]
[1739821029406,82.1,177.87,177.86,18.78268562]
[1739821029708,82.1,177.87,177.86,13.16038562]
[1739821029908,86.7,177.87,177.86,18.78268562]
[1739821030114,82.1,177.87,177.86,18.78268562]
[1739821030309,82.1,177.87,177.86,13.16038562]
[1739821030522,86.7,177.87,177.86,13.16038562]
[1739821031036,86.7,177.87,177.86,18.78268562]
[1739821031209,82.1,177.87,177.86,18.78268562]
[1739821031931,82.1,177.87,177.86,13.16038562]
[1739821032104,86.7,177.87,177.86,0.03]
[1739821032300,82.1,177.87,177.86,18.78268562]
[1739821032804,82.1,177.87,177.86,13.16038562]
[1739821032997,86.7,177.87,177.86,13.16038562]
[1739821033202,86.7,177.87,177.86,0.03]
[1739821033419,82.1,177.87,177.86,0.03]
[1739821033815,5.6848,177.88,177.86,0.03]
[1739821036032,0.063,177.88,177.87,13.13038562]
[1739821037306,0.063,177.88,177.86,0.03]
[1739821037733,13.13038562,177.87,177.86,0.03]
[1739821038045,26.54223415,177.87,177.86,0.03]
[1739821039112,32.16423415,177.87,177.86,0.03]
[1739821040139,0.063,177.88,177.86,0.03]
[1739821043118,20.51583997,177.87,177.86,0.03]
[1739821043315,39.5496885,177.87,177.86,0.03]
[1739821043831,5.6847,177.88,177.86,0.03]
[1739821044343,26.20053997,177.88,177.86,0.03]
[1739821044710,20.51583997,177.87,177.86,0.03]
[1739821045036,26.20053997,177.88,177.86,0.03]
[1739821047134,0.063,177.88,177.86,0.03]
[1739821048741,0.063,177.88,177.87,20.51583997]
[1739821048937,0.063,177.88,177.86,20.54583997]
[1739821050345,0.063,177.88,177.86,26.16803997]
[1739821050653,0.063,177.88,177.87,20.51583997]
[1739821052429,0.063,177.88,177.87,26.13783997]
[1739821053647,0.063,177.88,177.86,5.6523]
[1739821054224,0.063,177.88,177.86,0.03]
[1739821055138,0.063,177.88,177.87,20.51583997]
[1739821055742,0.063,177.88,177.87,26.13783997]
[1739821060639,0.063,177.88,177.87,27.75633997]
[1739821061022,0.063,177.88,177.87,26.13783997]
[1739821061642,0.063,177.88,177.87,26.16783997]
[1739821066833,0.063,177.88,177.87,0.03]
[1739821074232,20.57883997,177.88,177.87,0.03]
[1739821074657,13.19597473,177.88,177.87,0.03]
[1739821074837,0.063,177.88,177.87,0.03]
[1739821077247,0.063,177.88,177.87,13.16297473]
[1739821079162,0.063,177.88,177.87,18.78497473]
[1739821080676,0.063,177.88,177.87,0.03]
[1739821087560,0.063,177.88,177.87,13.16297473]
[1739821089065,0.063,177.88,177.87,18.78497473]
[1739821089459,0.063,177.88,177.87,13.16297473]
[1739821089665,0.063,177.88,177.87,0.03]
[1739821093263,0.063,177.88,177.87,13.16297473]
[1739821093764,0.063,177.88,177.87,0.03]
[1739821100072,0.063,177.88,177.87,13.16297473]
[1739821100682,0.0001,177.88,177.87,13.16297473]
[1739821100984,96.8415,178.0,177.9,20.0]
[1739821101161,96.8415,178.0,177.95,13.13297473]
[1739821101669,7.6615,178.0,177.95,13.13297473]
[1739821101875,7.6615,178.0,177.96,5.6192]
[1739821102080,7.6615,178.0,177.96,18.75217473]
[1739821102258,1.5293,178.0,177.96,18.75217473]
[1739821102655,1.5293,178.0,177.95,13.13297473]
[1739821102845,1.5293,178.0,177.95,18.75247473]
[1739821103574,82.1,177.99,177.94,13.13297473]
[1739821103748,95.23297473,177.99,177.93,13.13297473]
[1739821103953,95.23297473,177.99,177.9,18.75407473]
[1739821103954,13.13297473,177.96,177.9,18.75407473]
[1739821104151,82.1,177.95,177.9,18.75407473]
[1739821104361,82.1,177.95,177.9,13.13297473]
[1739821104570,82.1,177.95,177.89,5.6213]
[1739821104571,82.1,177.95,177.89,18.75427473]
[1739821105071,95.23297473,177.95,177.89,18.75427473]
[1739821105777,100.85257473,177.95,177.89,18.75427473]
[1739821106670,102.60448447,177.95,177.89,26.12578447]
[1739821108055,82.1,177.94,177.89,26.12578447]
[1739821110776,82.1,177.94,177.9,20.50448447]
[1739821112679,82.1,177.94,177.89,26.12578447]
[1739821112856,82.1,177.94,177.89,5.6213]
[1739821113057,82.1,177.94,177.9,20.50448447]
[1739821114084,82.1,177.93,177.9,20.50448447]
[1739821114258,82.1,177.93,177.9,26.12548447]
[1739821114458,82.1,177.93,177.91,20.50448447]
[1739821114687,82.1,177.93,177.89,20.50448447]
[1739821115072,82.1,177.93,177.9,20.50448447]
[1739821115273,82.1,177.93,177.89,20.50448447]
[1739821115779,82.1,177.93,177.88,26.12618447]
[1739821116665,82.1,177.93,177.89,20.50448447]
[1739821118289,1.5661,177.92,177.88,20.50448447]
[1739821118460,1.5661,177.92,177.87,0.03]
[1739821118461,102.60448447,177.91,177.87,0.03]
[1739821119056,82.1,177.91,177.87,0.03]
[1739821119359,82.1,177.91,177.89,20.50448447]
[1739821119773,82.1,177.91,177.87,20.53448447]
[1739821120082,82.1,177.91,177.87,0.03]
[1739821120860,20.50448447,177.9,177.89,0.03]
[1739821121765,82.1,177.91,177.89,0.03]
[1739821122676,82.1,177.91,177.89,20.53448447]
[1739821122882,82.1,177.91,177.9,26.12558447]
[1739821123074,0.063,177.94,177.9,26.12558447]
[1739821123267,0.063,177.94,177.93,20.50448447]
[1739821124490,0.063,177.94,177.93,26.12458447]
[1739821124665,0.063,177.94,177.93,26.9672866]
[1739821126183,0.063,177.94,177.93,26.12458447]
[1739821126779,0.063,177.94,177.92,5.6204]
[1739821126989,0.063,177.94,177.91,26.12518447]
[1739821127170,0.063,177.94,177.89,26.15578447]
[1739821127381,20.56748447,177.94,177.89,0.03]
[1739821128695,26.18748447,177.94,177.89,0.03]
[1739821128872,20.50448447,177.91,177.89,0.03]
[1739821129071,20.50448447,177.9,177.89,0.03]
[1739821129394,20.50448447,177.91,177.89,0.03]
[1739821129988,82.1,177.93,177.89,0.03]
[1739821130199,82.1,177.93,177.89,20.53448447]
[1739821130780,82.1,177.93,177.89,26.15578447]
[1739821131275,82.1,177.93,177.91,20.50448447]
[1739821131594,82.1,177.93,177.9,20.50448447]
[1739821133279,82.1,177.93,177.91,5.6208]
[1739821134377,82.1,177.93,177.9,26.12548447]
[1739821134778,0.063,177.94,177.9,26.12548447]
[1739821134779,82.1,177.92,177.9,26.12548447]
[1739821135591,82.1,177.92,177.91,20.50448447]
[1739821135998,0.063,177.94,177.91,20.50448447]
[1739821136186,0.063,177.94,177.93,20.50448447]
[1739821136803,0.063,177.94,177.93,41.00896894]
[1739821137505,0.063,177.94,177.93,26.12458447]
[1739821138803,0.063,177.94,177.9,20.0]
[1739821139003,0.063,177.94,177.92,20.50448447]
[1739821139880,0.063,177.94,177.92,26.12468447]
[1739821140085,0.063,177.94,177.92,5.6202]
[1739821140390,0.063,177.94,177.91,20.50448447]
[1739821140798,0.063,177.94,177.93,20.50448447]
[1739821141986,0.063,177.94,177.9,20.0]
[1739821141987,0.063,177.94,177.9,5.6211]
[1739821142707,0.063,177.94,177.89,26.15578447]
[1739821143003,0.063,177.94,177.89,5.6513]
[1739821143210,102.60448447,177.93,177.89,0.03]
[1739821143398,102.60448447,177.92,177.89,0.03]
[1739821143912,108.22508447,177.92,177.89,0.03]
[1739821145112,20.50448447,177.9,177.89,0.03]
[1739821146316,20.50448447,177.91,177.89,0.03]
[1739821147092,20.50448447,177.92,177.89,0.03]
[1739821148515,0.063,177.93,177.89,0.03]
[1739821148813,13.47484853,177.93,177.89,0.03]
[1739821149016,33.979333,177.93,177.89,0.03]
[1739821149519,20.50448447,177.92,177.89,0.03]
[1739821149724,20.50448447,177.91,177.89,0.03]
[1739821150012,19.09504853,177.93,177.89,0.03]
[1739821150013,20.50448447,177.9,177.89,0.03]
[1739821151119,26.12538447,177.91,177.89,0.03]
[1739821151822,20.50448447,177.91,177.89,0.03]
[1739821152614,26.12508447,177.92,177.89,0.03]
[1739821153727,39.599533,177.93,177.89,0.03]
[1739821153900,26.18768447,177.93,177.89,0.03]
[1739821154514,20.56748447,177.93,177.89,0.03]
[1739821154704,0.063,177.93,177.89,0.03]
[1739821154911,0.063,177.93,177.91,20.50448447]
[1739821155110,0.063,177.93,177.92,20.50448447]
[1739821156018,0.063,177.93,177.92,26.12498447]
[1739821160220,0.0001,177.93,177.92,48.47218698]
[1739821160414,0.063,177.94,177.93,13.41184853]
[1739821160415,0.0001,177.94,177.93,13.41184853]
[1739821160606,0.0001,177.94,177.93,55.42081747]
[1739821160807,0.0001,177.94,177.93,42.00896894]
[1739821161027,0.0001,177.94,177.93,47.62906894]
[1739821161319,0.0001,177.94,177.93,26.12458447]
[1739821161914,0.0001,177.94,177.93,5.6201]
[1739821162721,0.0001,177.94,177.93,26.12458447]
[1739821163520,0.0001,177.94,177.92,20.50448447]
[1739821164303,0.0001,177.94,177.93,20.50448447]
[1739821164719,0.0001,177.94,177.93,26.12458447]
[1739821165319,0.0001,177.94,177.93,20.50448447]
[1739821165525,0.0001,177.94,177.91,5.6205]
[1739821165828,0.0001,177.94,177.9,26.12558447]
[1739821166026,0.0001,177.94,177.9,5.6211]
[1739821167022,0.0001,177.94,177.9,26.12558447]
[1739821167427,0.0001,177.94,177.91,20.50448447]
[1739821167729,0.0001,177.94,177.9,26.12558447]
[1739821168307,0.0001,177.94,177.9,5.6211]
[1739821170441,82.1,177.93,177.9,5.6211]
[1739821171437,82.1,177.93,177.92,20.50448447]
[1739821171820,82.1,177.93,177.91,20.50448447]
[1739821172018,82.1,177.93,177.9,5.6211]
[1739821173043,82.1,177.93,177.9,26.12558447]
[1739821173631,82.1,177.93,177.89,20.53448447]
[1739821173838,82.1,177.92,177.89,20.53448447]
[1739821174520,82.1,177.92,177.9,40.50448447]
[1739821175031,0.0001,177.94,177.89,0.03]
[1739821175032,104.21008447,177.91,177.89,0.03]
[1739821175245,20.50448447,177.9,177.89,0.03]
[1739821176332,82.1,177.91,177.89,0.03]
[1739821177119,102.60448447,177.91,177.89,0.03]
[1739821177317,108.22538447,177.91,177.89,0.03]
[1739821178554,20.50448447,177.9,177.89,0.03]
[1739821180448,26.12558447,177.9,177.89,0.03]
[1739821181052,39.537433,177.9,177.89,0.03]
[1739821181230,45.849633,177.9,177.89,0.03]
[1739821183157,26.81668447,177.9,177.89,0.03]
[1739821184962,6.3122,177.9,177.89,0.03]
[1739821185462,6.3122,177.9,177.89,30.03]
[1739821185658,26.81668447,177.9,177.89,30.03]
[1739821186264,6.3122,177.9,177.89,30.03]
[1739821186472,20.50448447,177.91,177.89,30.03]
[1739821186956,26.12528447,177.91,177.89,30.03]
[1739821187532,20.50448447,177.9,177.89,30.03]
[1739821188638,20.50448447,177.91,177.89,30.03]
[1739821190239,39.536833,177.92,177.89,30.03]
[1739821190758,20.50448447,177.91,177.89,30.03]
[1739821191260,20.50448447,177.9,177.89,30.03]
[1739821192562,26.12558447,177.9,177.89,30.03]
[1739821193360,20.50448447,177.9,177.89,30.03]
[1739821193658,26.12558447,177.9,177.89,30.03]
[1739821197878,20.50448447,177.9,177.89,30.03]
[1739821198685,13.13096287,177.9,177.89,30.03]
[1739821199863,13.13096287,177.91,177.89,30.03]
[1739821200582,6.5626,177.94,177.89,35.6513]
[1739821200758,19.69356287,177.94,177.89,35.6513]
[1739821200959,13.13096287,177.93,177.89,35.6513]
[1739821201380,6.5626,177.94,177.89,35.6513]
[1739821201381,19.69356287,177.94,177.89,35.6513]
[1739821202083,13.13096287,177.93,177.89,35.6513]
[1739821202283,13.13096287,177.92,177.89,30.03]
[1739821203193,13.13096287,177.91,177.89,30.03]
[1739821203395,13.13096287,177.9,177.89,30.03]
[1739821203892,26.5428114,177.9,177.89,30.03]
[1739821204291,32.1639114,177.9,177.89,30.03]
[1739821204689,63.1639114,177.9,177.89,30.03]
[1739821206296,62.1639114,177.9,177.89,30.03]
[1739821206501,26.5428114,177.9,177.89,30.03]
[1739821206801,5.6201,177.93,177.89,30.03]
[1739821207106,0.0001,177.94,177.89,50.54251221]
[1739821207401,0.0001,177.94,177.9,20.51251221]
[1739821207699,20.0,177.93,177.89,56.16381221]
[1739821208681,20.0,177.93,177.89,30.03]
[1739821208883,20.51251221,177.92,177.89,30.03]
[1739821209279,20.51251221,177.91,177.89,30.03]
[1739821209478,20.51251221,177.92,177.89,30.03]
[1739821209683,40.51251221,177.93,177.89,30.03]
[1739821209896,20.0,177.93,177.89,35.6514]
[1739821210402,0.0001,177.94,177.89,56.16391221]
[1739821210596,0.0001,177.94,177.9,20.51251221]
[1739821210765,0.0001,177.94,177.91,20.51251221]
[1739821212493,0.0001,177.94,177.93,20.51251221]
[1739821214078,0.0001,177.94,177.93,26.13261221]
[1739821214612,0.0001,177.94,177.89,56.16391221]
[1739821214775,20.51251221,177.92,177.89,30.03]
[1739821214975,20.51251221,177.9,177.89,30.03]
[1739821216079,26.13361221,177.9,177.89,30.03]
[1739821216931,39.54546074,177.9,177.89,30.03]
[1739821217885,69.54546074,177.9,177.89,28.84575831]
[1739821218249,33.92436074,177.9,177.89,28.84575831]
[1739821218534,39.54546074,177.9,177.89,28.84575831]
[1739821219334,33.92436074,177.9,177.89,28.84575831]
[1739821219704,39.54546074,177.9,177.89,28.84575831]
[1739821220719,73.18336074,177.9,177.89,5.831e-05]
[1739821220921,82.1,177.89,177.87,0.03]
[1739821221124,20.51251221,177.88,177.87,0.03]
[1739821221331,33.92436074,177.88,177.87,0.03]
[1739821222313,39.54606074,177.88,177.87,0.03]
[1739821222707,13.41184853,177.87,177.77,5.6252]
[1739821222926,20.51251221,177.84,177.78,20.51251221]
[1739821223125,20.51251221,177.85,177.79,20.51251221]
[1739821223328,20.51251221,177.86,177.79,20.51251221]
[1739821223514,13.41184853,177.87,177.78,19.32827052]
[1739821223718,20.51251221,177.83,177.77,26.13771221]
[1739821223925,20.51251221,177.84,177.78,20.51251221]
[1739821224641,20.51251221,177.84,177.78,26.13721221]
[1739821225319,26.13551221,177.84,177.78,26.13721221]
[1739821225510,26.13551221,177.84,177.75,5.6258]
[1739821225511,20.51251221,177.81,177.75,5.6258]
[1739821225721,20.51251221,177.8,177.75,5.6258]
[1739821225920,20.51251221,177.81,177.75,26.13831221]
[1739821226319,20.51251221,177.82,177.75,26.13831221]
[1739821226731,20.51251221,177.8,177.74,26.20161221]
[1739821226936,20.51251221,177.79,177.74,5.6891]
[1739821227113,82.1,177.78,177.74,5.6891]
[1739821227440,82.1,177.78,177.74,26.20161221]
[1739821227818,82.1,177.78,177.76,20.51251221]
[1739821228141,82.1,177.78,177.77,20.51251221]
[1739821228634,82.1,177.78,177.77,26.13771221]
[1739821229139,82.1,177.78,177.77,5.6252]
[1739821229468,82.1,177.78,177.74,0.063]
[1739821229648,82.1,177.78,177.74,26.20161221]
[1739821229827,82.1,177.78,177.74,5.6891]
[1739821230035,82.1,177.78,177.74,26.20161221]
[1739821231220,82.1,177.78,177.75,20.51251221]
[1739821232932,82.1,177.77,177.75,5.6258]
[1739821233137,82.1,177.77,177.76,20.51251221]
[1739821234158,82.1,177.77,177.75,26.13831221]
[1739821234649,82.1,177.77,177.76,20.51251221]
[1739821235127,82.1,177.77,177.76,26.13801221]
[1739821236659,82.1,177.77,177.76,5.6255]
[1739821237550,82.1,177.77,177.76,26.13801221]
[1739821238852,13.41184853,177.81,177.76,26.13801221]
[1739821239658,20.24384509,177.85,177.8,20.51251221]
[1739821239830,82.1,177.84,177.8,20.51251221]
[1739821240429,82.1,177.84,177.82,20.51251221]
[1739821240734,82.1,177.83,177.76,26.59417208]
[1739821240941,82.1,177.82,177.76,26.59417208]
[1739821241642,82.1,177.82,177.76,54.72197208]
[1739821241846,82.1,177.82,177.81,26.13641221]
[1739821244753,82.1,177.82,177.81,5.6239]
[1739821245062,82.1,177.82,177.81,26.13641221]
[1739821247754,20.24384509,177.85,177.81,26.13641221]
[1739821248453,20.24384509,177.85,177.84,20.51251221]
[1739821248968,20.24384509,177.85,177.83,20.51251221]
[1739821249547,20.24384509,177.85,177.84,20.51251221]
[1739821249975,0.063,177.9,177.84,41.02502442]
[1739821250134,0.063,177.9,177.89,20.51251221]
[1739821250335,0.063,177.9,177.88,26.13401221]
[1739821251536,0.063,177.9,177.88,20.51251221]
[1739821251937,0.063,177.9,177.88,26.13411221]
[1739821252748,0.063,177.9,177.88,5.6216]
[1739821252948,0.063,177.9,177.87,20.51251221]
[1739821253254,20.57551221,177.9,177.85,5.6227]
[1739821253662,82.1,177.89,177.85,5.6227]
[1739821255561,82.1,177.89,177.84,26.13541221]
[1739821256479,102.61251221,177.89,177.84,5.6229]
[1739821256672,82.1,177.88,177.84,5.6229]
[1739821256978,20.51251221,177.87,177.82,5.6236]
[1739821258155,82.1,177.88,177.86,20.51251221]
[1739821258980,82.1,177.88,177.87,5.622]
[1739821259354,82.1,177.88,177.87,26.13451221]
[1739821261172,82.163,177.88,177.87,26.13451221]
[1739821262545,0.063,177.88,177.87,26.13451221]
[1739821262777,0.063,177.9,177.89,20.0]
[1739821262974,0.063,177.9,177.89,40.51251221]
[1739821263863,0.063,177.9,177.89,46.13391221]
[1739821264973,0.063,177.9,177.89,40.51251221]
[1739821265472,0.063,177.9,177.88,20.51251221]
[1739821265685,0.063,177.9,177.84,26.13551221]
[1739821265886,20.51251221,177.88,177.81,26.13641221]
[1739821266049,20.51251221,177.86,177.81,5.6239]
[1739821266250,102.61251221,177.85,177.8,5.6242]
[1739821266675,82.1,177.84,177.8,26.13671221]
[1739821267168,82.1,177.84,177.81,20.51251221]
[1739821267556,82.1,177.84,177.8,20.51251221]
[1739821268259,82.1,177.83,177.8,26.13671221]
[1739821269049,82.1,177.83,177.79,26.13701221]
[1739821271094,82.1,177.83,177.8,20.51251221]
[1739821271464,82.1,177.82,177.8,20.51251221]
[1739821271872,82.1,177.82,177.79,40.51251221]
[1739821272280,82.1,177.82,177.79,46.13691221]
[1739821272472,82.1,177.82,177.8,20.51251221]
[1739821272675,82.1,177.82,177.81,20.51251221]
[1739821273081,82.1,177.82,177.8,20.51251221]
[1739821275088,82.1,177.82,177.79,46.16691221]
[1739821275583,82.1,177.82,177.8,20.51251221]
[1739821277393,82.1,177.81,177.8,20.51251221]
[1739821278691,13.41184853,177.84,177.79,0.03]
[1739821278869,33.92436074,177.84,177.79,0.03]
[1739821279992,39.54756074,177.84,177.79,0.03]
[1739821280786,20.51251221,177.83,177.79,0.03]
[1739821281873,20.51251221,177.82,177.79,0.03]
[1739821282078,82.1,177.8,177.79,0.03]
[1739821284677,82.1,177.8,177.79,20.54251221]
[1739821285283,82.1,177.8,177.79,0.03]
[1739821286389,5.6234,177.83,177.79,0.03]
[1739821286893,13.41184853,177.82,177.79,0.03]
[1739821287095,20.51251221,177.81,177.79,0.03]
[1739821287674,33.92436074,177.82,177.79,0.03]
[1739821288191,5.6239,177.81,177.79,0.03]
[1739821288398,26.13641221,177.81,177.79,0.03]
[1739821288973,5.6239,177.81,177.79,0.03]
[1739821292280,26.13641221,177.81,177.79,0.03]
[1739821292487,82.1,177.8,177.79,0.03]
[1739821298311,13.14333678,177.81,177.79,0.03]
[1739821299289,32.17888531,177.82,177.79,0.03]
[1739821300607,13.14333678,177.81,177.79,0.03]
[1739821301614,32.17888531,177.82,177.79,0.03]
[1739821303192,13.14333678,177.8,177.79,0.03]
[1739821303391,26.55518531,177.81,177.79,0.03]